bitfinex/quotes_ETHUSD_20251023
["timestamp","ask_amount","ask_price","bid_price","bid_amount"]
[1761253123593,3.14263517,3827.3,3827.2,2.33911364]
[1761253124028,2.63575517,3827.3,3827.2,2.33911364]
[1761253124410,3.14263517,3827.3,3827.2,2.33911364]
[1761253124611,2.21855517,3827.3,3827.2,2.33911364]
[1761253124917,1.08055517,3827.3,3827.2,4.95198989]
[1761253125112,0.53295517,3827.3,3827.2,4.95198989]
[1761253125316,0.142595,3827.7,3827.2,2.33911364]
[1761253125546,0.142595,3827.7,3827.6,2.61260319]
[1761253125713,0.012195,3827.7,3827.6,2.61260319]
[1761253125912,0.012195,3827.7,3827.6,3.26553313]
[1761253126149,1e-08,3828.0,3827.9,2.61239844]
[1761253126317,1e-08,3828.0,3827.9,6.36979844]
[1761253126522,1e-08,3828.0,3827.9,8.08589068]
[1761253127047,1e-08,3828.0,3827.9,7.95549068]
[1761253127248,1e-08,3828.0,3827.9,8.08589068]
[1761253127425,1e-08,3828.0,3827.9,3.86999068]
[1761253127655,1e-08,3828.0,3827.9,7.95449068]
[1761253127840,0.001,3828.8,3828.3,2.61212548]
[1761253128030,0.001,3828.8,3828.3,3.13455972]
[1761253128347,0.001,3828.8,3828.3,3.59305972]
[1761253128515,0.001,3828.8,3828.3,2.61212548]
[1761253128945,0.001,3828.8,3828.3,6.23812548]
[1761253129152,0.001,3828.8,3828.3,6.23712548]
[1761253129520,0.001,3828.8,3828.3,6.69562548]
[1761253129717,0.001,3828.8,3827.8,0.1603]
[1761253129917,0.001,3828.8,3828.3,2.61212548]
[1761253130160,0.001,3828.8,3828.3,6.23712548]
[1761253130721,1.19150221,3828.4,3826.4,0.4605]
[1761253130921,2.1067811,3828.3,3827.3,2.77310798]
[1761253131230,0.90131672,3828.1,3827.3,2.59]
[1761253131434,1.44191893,3828.0,3827.4,2.61273971]
[1761253131638,0.54060221,3827.9,3827.4,3.628]
[1761253131857,0.54060221,3827.8,3827.4,3.628]
[1761253132067,0.54060221,3827.7,3827.4,6.2407372]
[1761253132263,0.54275909,3827.6,3827.5,2.61267145]
[1761253132929,0.54275909,3827.6,3827.5,6.23767145]
[1761253133178,0.54275909,3827.6,3827.2,2.33911364]
[1761253133325,0.54275909,3827.5,3827.4,6.2356822]
[1761253133729,0.54275909,3827.5,3827.2,4.95198322]
[1761253133964,0.54275909,3827.4,3827.2,2.33911364]
[1761253134260,0.417,3827.5,3827.3,3.621]
[1761253134472,1.89855697,3827.4,3827.3,3.62]
[1761253134625,0.54550349,3827.4,3827.2,2.33911364]
[1761253134826,1.24223919,3827.3,3827.2,1.91781364]
[1761253135026,1.24223919,3827.3,3826.4,0.002]
[1761253135027,0.50688,3827.2,3826.4,0.002]
[1761253135221,2.00040439,3826.5,3826.4,0.002]
[1761253135461,0.50688,3826.2,3824.5,0.2303]
[1761253135671,4.45615949,3826.2,3826.1,1.902]
[1761253135824,4.45615949,3826.2,3822.1,2.61632552]
[1761253135825,0.1327,3823.6,3821.6,2.48255579]
[1761253136025,0.91089742,3823.0,3821.7,0.24825558]
[1761253136350,0.91089742,3823.0,3821.6,2.43255579]
[1761253136351,0.91089742,3822.2,3821.6,2.43255579]
[1761253136566,0.1826,3821.7,3821.6,2.43255579]
[1761253136746,0.72876818,3821.7,3821.6,2.43255579]
[1761253136950,0.50688,3822.4,3821.7,0.4585]
[1761253137187,2.25508914,3822.6,3821.7,0.4585]
[1761253137188,3.1571248,3823.1,3822.3,0.2303]
[1761253137331,3.1571248,3823.9,3822.4,3.66]
[1761253137528,3.1571248,3823.9,3822.4,4.1185]
[1761253137770,1.00460139,3824.9,3822.5,0.89338]
[1761253137952,0.91210927,3825.5,3822.8,1.5552]
[1761253138273,0.91210927,3825.5,3822.9,1.8345]
[1761253138429,0.0842,3826.6,3822.9,1.8345]
[1761253138629,0.0842,3826.6,3823.1,0.50688]
[1761253138983,0.0842,3826.6,3823.4,2.61547313]
[1761253138984,0.099,3826.5,3823.4,2.61547313]
[1761253139187,0.07,3826.4,3823.5,0.62764731]
[1761253139369,0.099,3826.3,3823.6,0.4611]
[1761253139903,0.0842,3826.6,3823.7,0.50688]
[1761253140185,0.879,3827.1,3824.1,1.5552]
[1761253140371,0.099,3827.8,3826.0,0.002]
[1761253140692,2.61273004,3827.5,3826.0,0.002]
[1761253140901,0.0842,3826.1,3826.0,0.002]
[1761253141254,0.91210927,3827.5,3826.0,0.002]
[1761253141255,0.0842,3826.6,3826.0,0.002]
[1761253142188,5.0,3826.3,3826.0,0.002]
[1761253142577,5.0,3826.3,3826.2,2.61355914]
[1761253142887,0.1823,3827.6,3826.0,0.002]
[1761253142888,0.1823,3827.6,3826.3,2.61349083]
[1761253143084,0.1823,3827.6,3826.1,4.1271]
[1761253143596,0.1823,3827.6,3826.7,2.61315564]
[1761253143905,0.1823,3827.6,3826.0,0.002]
[1761253144194,0.50688,3826.4,3826.0,0.002]
[1761253144361,0.50688,3826.6,3826.0,0.002]
[1761253144569,0.91210927,3827.4,3826.0,0.002]
[1761253144775,0.099,3827.7,3826.0,2.61565193]
[1761253145093,0.099,3827.7,3826.8,2.61313367]
[1761253145292,0.099,3827.7,3826.0,0.002]
[1761253145594,0.099,3827.7,3826.0,0.2182]
[1761253145758,0.50688,3827.9,3826.1,2.61362745]
[1761253146055,0.1836,3828.0,3826.0,0.6793]
[1761253146255,0.099,3827.9,3826.1,2.518]
[1761253146493,0.1836,3828.0,3826.2,6.27955914]
[1761253146673,0.1836,3828.0,3826.4,2.61342253]
[1761253146865,0.1836,3828.0,3827.0,2.6129707]
[1761253147192,0.1836,3828.0,3826.4,2.61336168]
[1761253147193,3.21828122,3827.9,3826.4,2.61336168]
[1761253147398,1.5552,3827.6,3826.6,2.61328594]
[1761253147595,0.1304,3826.7,3826.6,2.61328594]
[1761253147975,0.1304,3827.2,3826.6,0.1304]
[1761253148386,0.1304,3827.2,3826.2,3.666]
[1761253148387,5.0,3827.7,3827.1,2.61294452]
[1761253148685,0.001,3828.0,3827.9,2.61239844]
[1761253149292,0.001,3828.0,3827.9,3.07349844]
[1761253150252,0.001,3828.0,3826.2,0.92739766]
[1761253150372,0.001,3828.0,3826.9,0.4611]
[1761253150570,0.001,3828.0,3827.9,2.61239844]
[1761253150993,0.001,3828.0,3827.9,6.74449844]
[1761253152264,0.001,3828.8,3828.3,10.86454099]
[1761253152706,0.001,3828.8,3828.7,2.61185258]
[1761253152872,0.001,3828.8,3828.7,6.27985258]
[1761253153083,1.00947002,3830.9,3828.7,4.1291]
[1761253153275,1.00947002,3830.9,3829.3,8.25241551]
[1761253153490,1.00947002,3830.9,3830.4,2.61063024]
[1761253153702,1.00947002,3830.9,3830.2,3.667]
[1761253153878,0.1001,3831.6,3830.7,2.61043607]
[1761253154105,1.1402,3832.0,3830.8,2.61041955]
[1761253154309,1.1402,3832.0,3830.1,0.2209]
[1761253154626,0.1009,3831.9,3830.2,3.663]
[1761253155125,0.0842,3832.0,3831.0,2.61021695]
[1761253155625,0.0842,3832.0,3831.0,3.663]
[1761253155847,2.60881164,3833.2,3832.0,2.60959942]
[1761253155848,0.0845,3832.8,3832.0,2.60959942]
[1761253155990,0.0845,3832.8,3831.1,0.4611]
[1761253155991,0.0845,3832.8,3831.9,3.662]
[1761253156192,0.0845,3832.8,3831.9,6.27266294]
[1761253156510,0.0845,3833.1,3831.9,6.27264877]
[1761253156729,0.0845,3833.1,3831.9,3.663]
[1761253156949,0.0845,3833.1,3831.0,2.61026601]
[1761253156950,0.1851,3833.1,3831.0,0.4611]
[1761253157126,0.1851,3833.1,3831.3,2.61007348]
[1761253157294,0.1006,3833.0,3831.4,3.66]
[1761253157494,0.1006,3833.0,3830.6,2.61049183]
[1761253157495,0.43491491,3832.9,3831.5,2.308]
[1761253157747,0.001,3832.0,3831.3,2.61007438]
[1761253157921,0.001,3832.0,3830.8,2.61040863]
[1761253157922,0.001,3832.0,3830.8,0.4611]
[1761253158136,0.001,3832.0,3830.2,2.033568]
[1761253158137,0.001,3832.0,3830.3,0.4611]
[1761253158331,0.001,3832.0,3830.3,0.2209]
[1761253158520,0.1304,3831.3,3830.8,0.1304]
[1761253158834,0.001,3832.0,3830.9,0.4611]
[1761253159033,0.001,3832.0,3831.1,2.61021638]
[1761253159341,0.001,3832.0,3831.7,2.60976145]
[1761253159549,0.001,3832.0,3830.9,0.4611]
[1761253159712,0.001,3832.0,3831.1,2.61021638]
[1761253159911,0.001,3832.0,3831.3,2.61007667]
[1761253160240,0.001,3832.0,3831.6,2.60981193]
[1761253160441,0.001,3832.0,3831.7,2.60978386]
[1761253160807,0.001,3832.0,3831.9,2.60967144]
[1761253161396,0.001,3832.0,3831.7,2.60980659]
[1761253161397,0.001,3832.0,3831.7,2.60978901]
[1761253161623,0.001,3832.0,3831.8,2.60971772]
[1761253161865,0.001,3832.0,3831.9,6.26267144]
[1761253162269,0.001,3832.0,3831.9,2.60967144]
[1761253162573,0.001,3832.0,3831.9,6.25967144]
[1761253162947,0.001,3832.0,3831.9,6.25667144]
[1761253163264,0.001,3832.0,3831.9,2.60967144]
[1761253163436,0.001,3832.0,3831.9,6.25667144]
[1761253163846,0.001,3832.0,3831.9,6.47757144]
[1761253164056,0.001,3832.0,3831.9,6.93867144]
[1761253164250,0.001,3832.0,3831.9,6.25667144]
[1761253164580,0.001,3832.0,3831.6,0.2209]
[1761253164759,0.001,3832.0,3831.9,2.60967144]
[1761253164962,0.001,3832.0,3831.9,6.25267144]
[1761253165167,0.001,3832.0,3831.9,2.60967144]
[1761253165684,0.001,3832.0,3831.2,0.2209]
[1761253165840,0.001,3832.0,3831.9,2.60967144]
[1761253166535,0.001,3832.0,3831.9,14.97698366]
[1761253166739,0.001,3832.0,3831.9,16.66430674]
[1761253168546,0.001,3832.0,3831.9,16.79470674]
[1761253169381,0.001,3832.4,3832.3,2.60939905]
[1761253169677,0.001,3832.4,3832.3,3.05729905]
[1761253170040,0.001,3832.4,3832.3,3.18769905]
[1761253170239,0.001,3832.8,3832.7,2.60912672]
[1761253170446,0.1008,3835.3,3834.0,2.6082071]
[1761253170740,0.1008,3835.3,3832.7,11.88841551]
[1761253170741,0.1008,3835.3,3832.7,8.25241551]
[1761253170940,1.5552,3834.0,3832.7,8.25241551]
[1761253171145,0.4163431,3834.0,3832.8,6.24405865]
[1761253171462,0.654275,3834.0,3832.3,0.57971823]
[1761253171773,0.654275,3834.0,3832.8,2.60905498]
[1761253171774,0.2314,3833.9,3832.8,2.60905498]
[1761253171988,0.1324,3833.9,3832.9,6.24196729]
[1761253172170,0.1324,3833.9,3832.2,3.05734886]
[1761253172171,0.1324,3833.9,3833.0,3.635]
[1761253172487,0.1324,3833.9,3833.2,2.60878639]
[1761253172649,0.1324,3833.9,3833.1,3.635]
[1761253172982,0.1324,3833.9,3833.1,6.24384485]
[1761253173341,0.1324,3833.9,3832.4,3.05719144]
[1761253173342,5.0,3833.6,3832.3,0.2215]
[1761253173675,5.0,3833.6,3832.6,2.60918641]
[1761253173875,5.0,3833.6,3832.8,2.60903038]
[1761253174042,5.0,3833.6,3832.3,0.2215]
[1761253174043,5.0,3833.6,3832.9,3.63]
[1761253174244,5.0,3833.6,3833.0,6.23887744]
[1761253174451,5.0,3833.6,3833.1,3.629]
[1761253174800,5.0,3833.6,3832.8,2.60905034]
[1761253174945,5.0,3833.6,3833.2,3.628]
[1761253175457,5.099,3833.6,3833.2,3.627]
[1761253175871,5.099,3833.6,3832.9,2.60898589]
[1761253176070,5.099,3833.6,3833.0,3.625]
[1761253176658,5.099,3833.6,3833.0,6.23390613]
[1761253176858,5.099,3833.6,3833.1,2.60885249]
[1761253177062,5.099,3833.6,3833.0,6.23390835]
[1761253177375,5.099,3833.6,3833.0,3.625]
[1761253177548,5.92611448,3833.6,3832.3,0.2215]
[1761253177745,5.82711448,3833.6,3832.9,2.60893683]
[1761253177986,5.82711448,3833.6,3833.0,3.62]
[1761253178307,5.82711448,3833.6,3833.0,6.22891609]
[1761253178593,5.0,3833.6,3833.0,6.22891609]
[1761253178747,5.0,3833.6,3833.1,2.60881312]
[1761253179160,5.0,3833.6,3833.2,3.616]
[1761253180285,0.1304,3833.3,3832.8,2.73943584]
[1761253180496,0.1304,3833.3,3832.9,3.613]
[1761253180693,0.1304,3833.3,3832.9,6.22198593]
[1761253180898,0.1304,3833.3,3832.9,3.613]
[1761253181391,0.1304,3833.3,3833.0,3.613]
[1761253181962,5.0,3833.6,3833.0,3.613]
[1761253182165,0.1304,3833.4,3833.0,3.613]
[1761253182584,0.1304,3833.4,3832.9,2.60897157]
[1761253182787,0.1304,3833.4,3833.1,3.61]
[1761253182990,0.099,3833.3,3831.8,0.92739766]
[1761253183269,3.11572693,3833.2,3831.6,2.60983992]
[1761253183494,0.1304,3832.0,3831.7,3.606]
[1761253184201,0.1304,3832.0,3831.7,6.21578241]
[1761253184400,0.1304,3832.0,3831.7,3.606]
[1761253184762,0.1304,3832.0,3831.7,6.21580558]
[1761253184966,0.1304,3832.0,3831.6,12.40623942]
[1761253185193,0.1304,3832.0,3831.8,3.605]
[1761253186573,0.1304,3832.0,3831.8,6.2147381]
[1761253186775,0.0847,3833.3,3832.4,2.60929228]
[1761253186977,0.1304,3832.8,3832.5,3.597]
[1761253188185,0.1304,3832.8,3832.5,6.20621868]
[1761253188380,0.1304,3832.8,3832.5,3.597]
[1761253188605,5.0,3832.6,3832.5,3.597]
[1761253189109,5.0,3832.6,3832.5,6.20626288]
[1761253189275,5.0,3832.6,3832.5,6.65416288]
[1761253189675,0.0847,3833.3,3832.9,2.60898048]
[1761253189876,0.099,3834.0,3833.0,3.593]
[1761253190205,1.5552,3833.8,3833.1,3.593]
[1761253190794,0.57297643,3833.9,3833.1,3.593]
[1761253191000,2.60848798,3833.7,3833.1,3.593]
[1761253191197,1.5552,3833.7,3833.1,3.593]
[1761253191377,1.5552,3833.8,3833.1,3.593]
[1761253191778,1.6886,3833.9,3833.1,6.20184619]
[1761253192003,1.6886,3833.9,3833.1,3.593]
[1761253192004,0.54489129,3833.8,3833.1,3.593]
[1761253192209,0.1334,3833.9,3833.1,6.20184779]
[1761253192397,0.1334,3833.9,3833.1,3.593]
[1761253192594,2.60839548,3833.8,3833.1,3.593]
[1761253192919,0.1334,3833.9,3833.1,6.20180829]
[1761253193089,0.1334,3833.9,3833.1,3.593]
[1761253193278,0.1334,3833.9,3833.2,2.60872855]
[1761253193475,0.1334,3833.9,3833.1,6.20179785]
[1761253193698,0.1334,3833.9,3833.1,4.0409]
[1761253193699,0.001,3833.9,3833.1,4.0409]
[1761253193909,0.001,3833.9,3833.5,2.60853316]
[1761253194118,0.001,3833.9,3833.6,6.19150721]
[1761253194410,0.001,3833.9,3833.6,6.19151307]
[1761253194710,0.001,3833.8,3833.7,2.60844614]
[1761253195013,0.001,3833.8,3833.6,3.583]
[1761253195529,0.2314,3833.7,3833.3,3.579]
[1761253195823,0.1324,3833.7,3833.3,3.579]
[1761253196133,0.1324,3833.7,3831.5,0.92739766]
[1761253196134,4.16473524,3832.1,3831.5,0.92739766]
[1761253196303,4.16473524,3832.1,3830.7,3.415]
[1761253196304,4.77061524,3832.1,3830.7,3.415]
[1761253196631,4.26373524,3832.1,3830.7,3.415]
[1761253196837,1.5552,3832.1,3831.2,3.596]
[1761253196994,4.72239466,3832.1,3831.2,3.596]
[1761253197189,0.55765942,3832.1,3831.1,0.2215]
[1761253197413,2.60953524,3832.1,3831.1,0.2215]
[1761253197615,2.70853524,3832.1,3831.3,0.515]
[1761253197826,2.70853524,3832.1,3831.1,0.2215]
[1761253198026,3.26592719,3832.1,3831.3,1.004]
[1761253198395,0.55739195,3832.1,3831.3,1.004]
[1761253198694,0.0807,3832.2,3831.3,1.004]
[1761253199112,2.69016813,3832.2,3831.3,1.4474]
[1761253199317,0.1304,3832.1,3831.4,3.7254]
[1761253200216,2.73993524,3832.1,3831.4,3.7254]
[1761253200431,4.29687113,3832.1,3830.7,0.4434]
[1761253200651,6.35895113,3832.1,3830.3,0.6643]
[1761253200942,7.1406604,3832.1,3830.4,0.1304]
[1761253201152,7.2710604,3832.1,3830.4,0.1304]
[1761253201294,2.6111024,3829.8,3829.7,0.003]
[1761253201501,6.2011024,3829.8,3829.7,0.003]
[1761253201727,9.74415847,3829.8,3829.7,0.003]
[1761253201996,9.84555621,3829.8,3829.7,0.003]
[1761253202194,1.5552,3829.7,3828.8,0.002]
[1761253202391,0.55618283,3829.6,3828.8,0.002]
[1761253202628,1.5552,3829.7,3828.8,0.002]
[1761253202797,0.099,3829.6,3828.8,0.002]
[1761253203214,1.5552,3829.5,3828.8,0.002]
[1761253203429,0.50688,3829.5,3828.8,0.002]
[1761253203840,2.61137515,3829.4,3828.8,0.002]
[1761253204120,4.16691615,3828.9,3828.8,0.002]
[1761253204314,4.67379615,3828.9,3828.8,0.002]
[1761253204519,0.097,3828.9,3828.0,0.002]
[1761253204739,1.5552,3828.9,3828.1,0.2158]
[1761253204951,2.61190936,3828.7,3828.0,0.002]
[1761253205147,6.21590936,3828.7,3828.0,0.002]
[1761253205349,6.215868,3828.7,3828.0,0.002]
[1761253205538,3.604,3828.7,3828.0,0.002]
[1761253206362,6.21586167,3828.7,3828.0,0.002]
[1761253206667,2.61198902,3828.5,3828.0,0.002]
[1761253207155,2.70898902,3828.5,3828.0,0.002]
[1761253207352,4.77106902,3828.5,3828.0,0.002]
[1761253208442,4.77106902,3828.5,3825.4,0.2158]
[1761253208443,0.50688,3828.3,3825.4,0.2158]
[1761253208644,1.6522,3828.4,3824.6,0.2158]
[1761253208645,0.1177,3826.1,3824.6,0.2158]
[1761253208956,8.39640745,3826.1,3823.6,0.2158]
[1761253209263,3.7207,3826.1,3824.9,2.83022127]
[1761253209419,0.1527,3827.1,3825.8,2.61380869]
[1761253209619,0.219,3827.0,3825.9,0.02613764]
[1761253209961,0.50688,3826.9,3824.9,0.2158]
[1761253210165,0.50688,3826.8,3824.9,0.2158]
[1761253210477,0.099,3826.8,3825.0,0.4434]
[1761253210662,1.5552,3826.4,3825.0,0.4434]
[1761253210970,1.9622,3826.4,3825.2,2.61423123]
[1761253211268,0.407,3826.4,3825.1,2.61428024]
[1761253211492,0.407,3826.4,3825.0,0.4434]
[1761253211841,3.02045099,3826.4,3825.0,0.4434]
[1761253212086,0.1304,3825.5,3825.2,2.61421284]
[1761253212572,0.1304,3825.5,3825.0,0.1304]
[1761253212781,0.1304,3825.8,3825.7,2.61390072]
[1761253212936,0.407,3826.4,3825.3,0.4434]
[1761253213142,0.1304,3826.0,3825.7,2.61389498]
[1761253213342,0.1304,3826.0,3825.4,0.1304]
[1761253213574,0.1304,3825.6,3825.3,2.61416548]
[1761253213878,0.1304,3825.6,3825.4,2.61409636]
[1761253214074,0.1304,3825.6,3825.4,2.61410434]
[1761253214274,0.1304,3825.6,3824.9,2.83224171]
[1761253214479,0.1304,3825.3,3824.9,0.002]
[1761253214656,0.1304,3825.3,3825.1,2.6143018]
[1761253214854,0.1304,3825.3,3824.9,2.61644139]
[1761253214855,0.1304,3825.3,3825.2,2.61424239]
[1761253215390,0.407,3826.4,3826.0,2.61364659]
[1761253215592,0.1304,3825.9,3825.8,2.61377089]
[1761253215976,0.1304,3825.9,3825.8,3.05717089]
[1761253216183,0.2519,3827.1,3825.8,3.05717089]
[1761253216184,0.1527,3827.1,3826.3,2.61342682]
[1761253216359,0.703,3827.0,3826.4,2.61336155]
[1761253216575,0.1304,3826.7,3826.6,2.61328594]
[1761253216893,0.1304,3826.7,3826.5,2.61334107]
[1761253217051,0.1304,3826.7,3826.6,2.61328594]
[1761253217252,0.703,3827.0,3826.6,0.4434]
[1761253217456,0.1304,3826.9,3826.6,3.05668393]
[1761253217767,0.1304,3826.9,3826.7,2.61321765]
[1761253218346,0.1304,3826.9,3825.9,0.4434]
[1761253218500,0.1002,3827.2,3825.3,3.6]
[1761253218841,0.1002,3827.2,3826.1,2.61362745]
[1761253218842,0.1304,3826.4,3826.1,2.61362745]
[1761253218995,0.1304,3826.4,3826.2,2.61355887]
[1761253219400,0.1304,3826.4,3826.3,2.61349083]
[1761253219808,0.1304,3826.4,3826.2,0.4434]
[1761253219809,0.1304,3826.8,3826.5,2.61334915]
[1761253220107,0.1304,3826.8,3826.7,2.61321765]
[1761253220328,1.5552,3827.6,3826.9,2.6130375]
[1761253220735,1.162,3827.7,3826.6,0.4434]
[1761253220950,1.162,3827.7,3826.0,6.21167768]
[1761253220951,0.1304,3827.3,3827.2,2.61287625]
[1761253221242,0.1304,3827.7,3827.5,2.61261745]
[1761253221526,0.1304,3827.7,3827.6,2.61260319]
[1761253221729,0.1304,3827.7,3827.1,0.1304]
[1761253221730,0.1304,3827.7,3827.4,2.61273971]
[1761253221936,0.1304,3827.7,3827.5,2.61260998]
[1761253222139,0.1304,3827.7,3827.4,2.61272154]
[1761253222324,0.1304,3827.7,3827.1,0.1304]
[1761253222634,0.1304,3827.7,3827.5,2.61262551]
[1761253222847,0.1304,3827.7,3827.5,2.61261895]
[1761253223032,0.1304,3827.7,3827.3,2.61280798]
[1761253223201,0.1304,3827.7,3827.4,2.61273216]
[1761253223612,0.1304,3827.7,3827.5,2.61265187]
[1761253223908,0.1304,3827.7,3827.5,2.61266443]
[1761253224122,0.1304,3827.7,3827.6,2.61260319]
[1761253224324,0.1304,3827.7,3827.5,2.61265932]
[1761253224706,0.1304,3827.7,3827.2,0.4434]
[1761253224707,0.1304,3827.7,3827.6,2.61260319]
[1761253224906,0.1304,3827.7,3826.9,2.82881506]
[1761253224907,0.1175,3827.8,3826.1,0.62116777]
[1761253225135,0.1511,3826.2,3824.8,0.4434]
[1761253225350,0.1511,3826.2,3823.8,2.61517943]
[1761253225351,0.1511,3826.2,3825.5,2.61398617]
[1761253225506,3.538,3826.6,3825.7,2.61383996]
[1761253225704,3.538,3826.6,3825.0,0.6592]
[1761253225917,0.0995,3826.5,3825.0,0.6592]
[1761253226340,0.0995,3826.5,3825.5,2.61399832]
[1761253226543,0.0995,3826.5,3824.6,0.2188]
[1761253226544,0.50688,3826.3,3824.6,0.2188]
[1761253226718,0.1173,3825.0,3824.6,0.003]
[1761253227450,4.65974155,3825.0,3824.6,0.003]
[1761253227653,4.38657908,3825.0,3824.6,0.003]
[1761253228159,1.6725,3825.0,3824.6,0.003]
[1761253228327,4.83872655,3825.0,3824.6,0.003]
[1761253228524,0.66914747,3825.0,3824.6,0.003]
[1761253228707,0.1173,3825.0,3824.6,0.003]
[1761253229041,3.592,3825.4,3824.7,2.61457745]
[1761253229242,3.592,3825.4,3824.9,0.4505]
[1761253229423,3.592,3825.4,3825.0,2.61437908]
[1761253229843,3.592,3825.4,3825.0,0.4485]
[1761253230145,1.6553,3826.0,3824.9,0.002]
[1761253230310,0.1168,3825.5,3824.9,0.002]
[1761253230506,2.61432759,3825.1,3824.9,0.002]
[1761253230928,0.217,3825.5,3824.9,0.002]
[1761253230929,3.591,3825.2,3824.9,0.002]
[1761253231330,2.61437908,3825.0,3824.9,0.002]
[1761253231535,0.55325748,3825.0,3824.9,0.002]
[1761253231730,4.10491262,3825.0,3824.9,0.002]
[1761253231931,1.49053354,3825.0,3824.9,0.002]
[1761253232323,4.10491262,3825.0,3824.9,0.002]
[1761253232520,4.20511262,3825.0,3824.9,0.002]
[1761253232737,1.59073354,3825.0,3824.9,0.002]
[1761253232936,4.20511262,3825.0,3824.9,0.002]
[1761253233647,0.55325748,3825.0,3824.9,0.002]
[1761253233835,0.55325748,3825.1,3824.9,0.002]
[1761253234036,0.55325748,3825.0,3824.9,0.002]
[1761253234245,0.55325748,3825.1,3824.9,0.002]
[1761253234445,0.55325748,3825.0,3824.9,0.002]
[1761253234751,0.55325748,3825.1,3824.9,0.002]
[1761253234918,0.1304,3825.0,3824.9,0.002]
[1761253235744,0.1304,3825.0,3824.9,0.4505]
[1761253235960,3.594,3825.8,3825.3,2.61411899]
[1761253236316,3.594,3825.8,3824.9,0.4505]
[1761253236317,0.55386976,3825.7,3825.4,0.4485]
[1761253236628,3.594,3825.8,3825.7,2.61390072]
[1761253236817,0.69310188,3826.6,3825.4,0.4485]
[1761253237155,0.55417224,3826.6,3825.4,3.06259763]
[1761253237356,0.55444633,3826.9,3826.5,0.2303]
[1761253237560,0.55444633,3827.2,3826.5,0.2303]
[1761253237761,0.55444633,3827.1,3826.9,2.61307492]
[1761253237923,0.55444633,3827.2,3826.6,0.4485]
[1761253238255,0.69310188,3827.6,3827.2,0.2303]
[1761253238455,0.55455637,3827.5,3827.2,0.2303]
[1761253238671,0.001,3827.7,3827.4,2.61270723]
[1761253238850,0.55451644,3827.6,3827.3,0.4485]
[1761253239022,0.001,3827.7,3827.6,2.61260319]
[1761253239224,0.001,3827.7,3827.4,2.61272308]
[1761253239440,0.001,3827.7,3827.3,3.0612898]
[1761253239641,0.001,3827.7,3827.3,0.4485]
[1761253239848,0.001,3827.7,3827.5,2.61265549]
[1761253240047,0.001,3827.7,3827.3,0.4485]
[1761253240048,0.001,3827.7,3827.4,2.61273252]
[1761253240249,0.3604,3827.7,3824.2,0.002]
[1761253240449,0.91477652,3827.7,3826.9,2.61307508]
[1761253240653,0.55537652,3827.7,3826.6,0.4485]
[1761253240853,0.001,3827.7,3826.7,0.4485]
[1761253241047,0.55537652,3827.7,3826.9,2.61307985]
[1761253241351,0.001,3827.7,3827.0,2.61300717]
[1761253241654,0.001,3827.7,3827.0,2.61300868]
[1761253241853,0.001,3827.7,3827.0,2.84330868]
[1761253242257,0.118,3827.6,3826.5,2.84362106]
[1761253242442,1.23145498,3827.7,3826.6,0.4485]
[1761253242648,0.55437652,3827.6,3826.7,2.6132013]
[1761253242849,0.001,3827.7,3826.9,2.61305943]
[1761253243049,0.001,3827.7,3827.0,0.70493012]
[1761253243358,0.001,3827.7,3827.0,2.84329744]
[1761253243529,0.001,3827.7,3827.0,0.6788]
[1761253244861,0.001,3827.7,3827.2,2.61285959]
[1761253245531,0.001,3827.7,3827.2,3.06135959]
[1761253245728,0.001,3827.7,3827.2,0.4485]
[1761253245927,0.001,3827.7,3827.0,0.2303]
[1761253246146,0.001,3827.7,3827.1,2.61288768]
[1761253246341,0.1304,3827.6,3827.2,2.61286088]
[1761253246661,0.1304,3827.6,3827.1,0.1304]
[1761253246959,0.1304,3827.6,3827.3,2.61280208]
[1761253247162,0.1304,3827.6,3827.2,2.61286821]
[1761253247460,0.1304,3827.6,3827.1,2.7433332]
[1761253248162,0.001,3827.7,3826.7,0.1304]
[1761253248163,0.1304,3827.2,3826.7,0.1304]
[1761253248345,0.1304,3827.2,3826.5,0.2303]
[1761253248661,0.1304,3826.8,3826.5,0.2303]
[1761253249034,0.1304,3826.8,3826.5,2.84364382]
[1761253249298,0.1304,3826.8,3826.5,0.2303]
[1761253249466,0.1304,3826.8,3826.5,2.84363413]
[1761253249780,0.1304,3826.8,3826.7,2.61321765]
[1761253249939,0.1304,3827.2,3826.9,2.61306318]
[1761253250326,0.1304,3827.2,3826.8,2.61314234]
[1761253250527,0.1304,3827.2,3826.9,2.61303153]
[1761253250987,0.1304,3827.2,3827.1,0.2303]
[1761253251136,6.39,3827.6,3827.1,3.29174452]
[1761253251137,0.1304,3827.4,3827.1,3.29174452]
[1761253251531,0.1304,3827.4,3827.2,3.06135137]
[1761253251732,0.001,3827.7,3827.3,2.61280798]
[1761253252033,0.001,3827.7,3827.3,3.06126967]
[1761253252269,0.001,3827.5,3827.4,3.06119166]
[1761253253485,0.001,3827.5,3827.4,6.63019166]
[1761253255462,0.001,3827.5,3827.4,7.57752644]
[1761253255686,0.001,3827.5,3827.4,6.63019166]
[1761253256080,0.001,3827.5,3827.4,6.17569166]
[1761253256282,0.001,3827.5,3827.4,2.61269166]
[1761253256477,0.001,3827.5,3827.4,6.17669166]
[1761253256993,0.001,3827.5,3827.4,6.62519166]
[1761253257325,0.001,3827.5,3827.4,6.17669166]
[1761253257966,0.001,3827.5,3827.4,2.61269166]
[1761253258514,0.001,3827.5,3827.4,6.17169166]
[1761253259200,0.001,3827.5,3827.4,2.61269166]